bitfinex/quotes_ETHUSD_20250620
["timestamp","ask_amount","ask_price","bid_price","bid_amount"]
[1750436092495,17.8168177,2489.5,2489.4,4.01703221]
[1750436092804,17.81681358,2489.5,2489.4,4.01703221]
[1750436092962,0.0595,2489.4,2489.1,4.01749519]
[1750436093164,0.2835941,2489.4,2489.3,4.01719358]
[1750436093363,7.83476338,2489.4,2489.3,4.01719358]
[1750436093735,17.83476338,2489.4,2489.3,4.01719358]
[1750436093874,17.8347623,2489.4,2489.3,4.01719358]
[1750436094070,17.7752623,2489.4,2489.3,4.01719358]
[1750436094295,17.83469728,2489.4,2489.3,4.01719358]
[1750436094988,17.83468956,2489.4,2489.3,4.01719358]
[1750436095190,17.55109474,2489.4,2489.3,4.01719358]
[1750436095674,17.5514305,2489.4,2489.3,4.01719358]
[1750436096095,17.55143602,2489.4,2489.3,4.01719358]
[1750436096398,17.17804811,2489.4,2489.3,4.01719358]
[1750436096574,17.55143592,2489.4,2489.3,4.01719358]
[1750436097891,17.17804811,2489.4,2489.3,4.01719358]
[1750436099223,17.5514334,2489.4,2489.3,4.01719358]
[1750436099823,17.17804811,2489.4,2489.3,4.01719358]
[1750436100023,10.39504811,2489.4,2489.3,4.01719358]
[1750436100229,17.17704811,2489.4,2489.3,4.01719358]
[1750436100794,17.17704811,2489.4,2488.9,4.01776603]
[1750436100795,0.0595,2489.2,2488.9,4.01776603]
[1750436101030,0.0595,2489.2,2489.0,4.01767778]
[1750436101031,16.8415,2489.1,2489.0,4.01767778]
[1750436101340,0.0595,2488.9,2488.7,4.018069]
[1750436101641,0.0595,2488.7,2488.6,4.42007606]
[1750436101802,16.781,2488.8,2488.7,4.01816209]
[1750436102002,17.15841799,2488.8,2488.7,4.01816209]
[1750436102721,10.37741799,2488.8,2488.7,5.26383082]
[1750436102929,10.37741799,2488.8,2488.7,6.08733082]
[1750436104141,17.15841799,2488.8,2488.7,6.08733082]
[1750436105310,17.21791799,2488.8,2488.7,4.01816209]
[1750436105695,17.21791799,2488.8,2488.1,5.85098911]
[1750436105696,0.0595,2488.6,2488.2,0.8023]
[1750436105895,0.0595,2488.6,2488.1,4.01912138]
[1750436105896,0.0595,2488.3,2488.1,4.01913106]
[1750436106261,0.0595,2488.3,2488.2,4.01896953]
[1750436106443,0.43647273,2488.3,2488.2,4.01896953]
[1750436106943,17.21647273,2488.3,2488.2,4.90300959]
[1750436107147,10.37697273,2488.3,2488.2,4.90300959]
[1750436107347,17.15697273,2488.3,2488.2,4.01896953]
[1750436107526,10.37697273,2488.3,2488.2,4.01896953]
[1750436107702,17.15697273,2488.3,2488.2,4.01896953]
[1750436108702,17.21777273,2488.3,2488.2,4.01896953]
[1750436109530,17.61266033,2488.3,2488.2,4.01896953]
[1750436109896,10.0,2488.2,2488.0,4.0192926]
[1750436110135,17.21234738,2488.1,2488.0,4.0192926]
[1750436111199,10.43234738,2488.1,2488.0,4.0192926]
[1750436111399,17.21334738,2488.1,2488.0,4.0192926]
[1750436112139,17.15254738,2488.1,2488.0,4.0192926]
[1750436112305,0.0608,2487.9,2487.8,4.01952481]
[1750436112537,9.86375832,2487.9,2487.8,4.01952481]
[1750436112713,10.0,2487.8,2487.7,4.01968936]
[1750436112899,10.43255374,2487.8,2487.6,4.01984801]
[1750436113206,17.21255374,2487.7,2487.6,4.01984801]
[1750436113440,10.0,2487.6,2487.5,4.02005857]
[1750436113611,10.37175374,2487.6,2486.9,4.84864092]
[1750436113811,10.0608,2487.4,2487.3,4.02042375]
[1750436114012,2.6601,2487.7,2487.6,4.01993889]
[1750436114212,13.95865548,2488.1,2487.8,4.01961572]
[1750436114213,0.8919,2487.9,2487.8,4.01961572]
[1750436114428,18.05567281,2487.9,2487.8,4.01961572]
[1750436115743,10.0,2487.8,2487.1,0.758]
[1750436115942,10.0,2487.6,2487.5,4.02000638]
[1750436116249,0.0608,2487.4,2487.3,4.02034212]
[1750436116446,0.0608,2487.3,2487.1,4.02064973]
[1750436116630,0.0608,2487.3,2487.2,4.02058539]
[1750436116806,7.22447187,2487.3,2487.2,4.02058539]
[1750436117002,0.44347187,2487.3,2487.2,4.02058539]
[1750436117558,7.22447187,2487.3,2487.2,4.02058539]
[1750436117758,0.0608,2487.8,2487.7,4.0197773]
[1750436118053,16.8418,2487.8,2487.7,4.0197773]
[1750436118249,0.0608,2487.6,2486.9,4.02105725]
[1750436118406,0.0608,2487.7,2487.6,4.01993889]
[1750436118612,6.8418,2487.7,2487.6,4.01993889]
[1750436119266,0.8204,2487.5,2486.3,0.8056]
[1750436119587,0.8204,2487.5,2487.4,4.02026212]
[1750436119588,0.0608,2487.5,2487.4,4.02026212]
[1750436120078,6.8418,2487.5,2487.4,4.02026212]
[1750436121135,0.0608,2487.7,2487.6,4.01993889]
[1750436121341,6.8418,2487.7,2487.6,4.01993889]
[1750436122618,0.0608,2488.0,2487.9,4.01945415]
[1750436122761,3.1698,2488.2,2488.1,4.01913106]
[1750436122762,0.0608,2488.2,2488.1,4.01913106]
[1750436122924,0.46051213,2488.3,2488.2,4.01896953]
[1750436123128,0.0608,2488.3,2488.2,4.01896953]
[1750436123631,16.8418,2488.3,2488.2,4.01896953]
[1750436123967,0.0608,2488.2,2488.0,4.0192926]
[1750436124128,6.8418,2488.1,2488.0,4.0192926]
[1750436124325,3.2591,2488.2,2488.1,4.01913106]
[1750436124538,10.0401,2488.2,2488.1,4.01913106]
[1750436125142,3.2591,2488.2,2488.1,4.01913106]
[1750436125356,10.0401,2488.2,2488.0,4.01920375]
[1750436125533,0.0608,2488.1,2488.0,4.01920375]
[1750436127334,10.0608,2488.1,2488.0,4.01920375]
[1750436127535,16.8418,2488.1,2488.0,4.01920375]
[1750436128534,0.39899436,2488.3,2488.2,4.01896953]
[1750436128773,10.0,2488.3,2488.2,4.01896953]
[1750436129073,17.17869115,2488.3,2488.2,4.01896953]
[1750436129390,7.9008,2488.7,2488.6,4.01832355]
[1750436129674,2.07606641,2489.0,2488.9,4.0178392]
[1750436129834,10.0608,2488.9,2488.3,4.79867256]
[1750436130034,10.0608,2488.7,2488.6,4.01832355]
[1750436130231,0.0608,2488.7,2488.5,4.01839672]
[1750436130475,6.78,2488.6,2488.5,4.01839672]
[1750436130662,16.78,2488.6,2488.5,4.01839672]
[1750436131033,6.78,2488.6,2488.4,4.01857583]
[1750436131234,6.78,2488.6,2488.0,4.85108292]
[1750436131475,6.8408,2488.6,2488.5,4.01848503]
[1750436131639,6.78,2488.6,2488.5,4.01848503]
[1750436131841,6.78,2488.6,2488.3,4.01865851]
[1750436132034,6.78,2488.6,2488.3,4.01866648]
[1750436132380,0.0608,2488.3,2487.9,4.01934638]
[1750436132676,0.0608,2488.1,2488.0,4.01919128]
[1750436132874,1.829,2488.3,2488.0,4.01919128]
[1750436132875,1.15678278,2488.8,2488.6,4.01832355]
[1750436133174,16.8408,2488.7,2488.6,4.01832355]
[1750436133491,10.0608,2488.6,2488.5,4.01839864]
[1750436133848,10.0,2488.6,2488.4,4.01857979]
[1750436134171,10.0,2488.6,2488.3,4.01880798]
[1750436134172,0.0608,2488.4,2488.3,4.01880798]
[1750436135438,10.0608,2488.3,2488.2,4.01888969]
[1750436136032,0.0608,2488.5,2488.1,4.01909719]
[1750436136237,0.0608,2488.5,2488.4,4.01864651]
[1750436136438,16.8468,2488.5,2488.4,4.01864651]
[1750436137039,16.786,2488.5,2488.3,4.01873043]
[1750436137266,0.0608,2488.4,2488.3,4.01873043]
[1750436137764,0.0608,2488.4,2488.2,4.01888091]
[1750436137968,6.8448,2488.3,2488.2,4.01896953]
[1750436138400,6.8448,2488.3,2488.1,4.01903576]
[1750436138617,0.0576,2488.2,2488.1,4.01905569]
[1750436138939,10.0576,2488.2,2488.1,4.01905569]
[1750436139705,6.78,2488.2,2488.1,4.01913106]
[1750436140109,0.0576,2488.5,2488.4,4.01864651]
[1750436140307,2.411,2488.6,2488.5,4.01848503]
[1750436140605,10.0,2488.5,2488.2,4.01896953]
[1750436140812,10.0576,2488.7,2488.6,4.01832355]
[1750436140993,10.42952517,2488.7,2488.6,4.01832355]
[1750436141194,17.20852517,2488.7,2488.6,4.01832355]
[1750436141386,16.8366,2488.7,2488.6,4.01832355]
[1750436141582,10.0,2488.7,2488.6,4.01832355]
[1750436141825,16.779,2488.7,2488.6,4.01832355]
[1750436143115,3.96066641,2489.0,2488.9,4.0178392]
[1750436143116,2.07606641,2489.0,2488.9,4.0178392]
[1750436143320,18.91266641,2489.0,2488.9,4.0178392]
[1750436145128,19.31834191,2489.0,2488.9,4.0178392]
[1750436146124,33.21939739,2489.0,2488.8,4.01800064]
[1750436146331,0.0576,2488.9,2488.8,4.01800064]
[1750436146821,2.4686,2488.9,2488.8,4.01800064]
[1750436147027,0.0576,2488.9,2488.8,4.01800064]
[1750436147187,12.48174191,2489.0,2488.9,4.0178392]
[1750436147394,19.25974191,2489.0,2488.9,4.0178392]
[1750436147579,19.31734191,2489.0,2488.9,4.0178392]
[1750436149332,0.0576,2488.9,2488.8,4.0179374]
[1750436149632,0.0576,2488.9,2488.7,4.0181018]
[1750436149633,0.0576,2488.9,2488.6,4.0182642]
[1750436149806,24.01625548,2488.7,2488.6,4.01818515]
[1750436150133,30.79425548,2488.7,2488.6,4.01818515]
[1750436150575,16.8356,2488.7,2488.6,4.01818515]
[1750436150776,1.2584755,2489.0,2488.9,4.0178392]
[1750436151008,8.0364755,2489.0,2488.9,4.0178392]
[1750436151581,7.2412755,2489.0,2488.9,4.0178392]
[1750436152217,0.8104,2488.9,2488.3,4.80290453]
[1750436152510,0.8104,2488.9,2488.7,4.01805347]
[1750436152511,16.8356,2488.8,2488.7,4.01805347]
[1750436153015,0.0576,2488.6,2488.2,4.01895837]
[1750436153215,0.0576,2488.4,2488.2,4.0189689]
[1750436153518,6.8346,2488.3,2488.2,4.0189689]
[1750436153816,10.0,2488.2,2488.1,4.019118]
[1750436153977,10.0576,2488.2,2488.1,4.019118]
[1750436154784,10.0,2488.2,2488.0,4.01921709]
[1750436155000,16.8346,2488.1,2488.0,4.01921709]
[1750436155602,16.777,2488.1,2488.0,4.01921709]
[1750436155997,16.8356,2488.1,2488.0,4.01921709]
[1750436156195,10.0,2488.0,2487.9,4.01936189]
[1750436156613,0.0576,2488.0,2487.7,0.7785]
[1750436156787,16.778,2487.9,2487.7,4.01970634]
[1750436157000,16.8356,2487.9,2487.8,4.01961572]
[1750436158500,17.21089287,2487.9,2487.8,4.01961572]
[1750436158685,0.0576,2487.8,2487.5,4.01994606]
[1750436158887,10.0576,2487.6,2487.5,4.01994606]
[1750436159095,0.0576,2487.5,2486.8,4.81741509]
[1750436159319,10.0576,2487.3,2487.2,4.02051136]
[1750436159520,10.817,2487.6,2487.3,4.02031893]
[1750436159719,6.778,2487.5,2487.3,4.02031893]
[1750436159922,0.0576,2487.4,2487.3,4.02031893]
[1750436160095,6.8356,2487.4,2487.3,4.02031893]
[1750436160299,10.817,2487.6,2487.5,4.0201005]
[1750436160300,10.0,2487.6,2487.5,4.0201005]
[1750436160587,6.778,2487.6,2486.4,4.02171858]
[1750436160798,10.0,2487.5,2487.2,4.0205137]
[1750436161029,16.8356,2487.4,2487.3,4.02042375]
[1750436161199,0.7719,2487.3,2487.1,4.02074019]
[1750436161404,10.0576,2487.1,2486.9,4.02100614]
[1750436161602,10.0576,2486.9,2486.5,0.805]
[1750436161808,6.8356,2486.8,2486.5,4.02165262]
[1750436161993,0.0576,2486.7,2486.5,4.02160693]
[1750436162189,16.778,2486.6,2486.3,0.8218]
[1750436162460,0.0576,2486.5,2486.4,4.02172262]
[1750436162658,16.778,2486.6,2486.3,4.02194925]
[1750436162797,0.0576,2486.5,2486.4,4.02187902]
[1750436162997,6.778,2486.6,2486.4,4.02187902]
[1750436163253,0.0576,2486.5,2486.2,0.23605903]
[1750436163549,0.0576,2486.3,2486.2,0.23605903]
[1750436163711,0.0576,2486.3,2486.2,4.25818867]
[1750436163912,0.0576,2486.3,2486.2,0.23605903]
[1750436164132,14.77295548,2486.3,2486.2,0.23605903]
[1750436164345,25.32295548,2486.3,2486.2,0.19435903]
[1750436164529,24.77295548,2486.3,2486.2,0.19435903]
[1750436165047,29.34499626,2486.3,2486.2,0.19435903]
[1750436165214,37.95299626,2486.3,2486.2,0.19435903]
[1750436165956,0.6076,2485.7,2485.5,4.02333534]
[1750436166258,10.0576,2485.5,2485.4,0.005]
[1750436166554,0.6076,2485.4,2485.3,0.1771198]
[1750436166853,18.2094,2485.4,2485.3,0.1771198]
[1750436167202,15.85639056,2485.4,2485.3,0.1771198]
[1750436167497,11.28289334,2485.4,2485.3,0.1771198]
[1750436167703,0.8209,2486.0,2485.3,0.1271198]
[1750436167903,0.0576,2485.9,2485.3,0.1271198]
[1750436168221,0.8232,2485.4,2485.3,0.1271198]
[1750436168397,17.6272,2485.4,2485.3,0.1271198]
[1750436168602,10.0,2485.4,2485.3,4.15077891]
[1750436168902,0.8232,2485.7,2485.6,4.02317347]
[1750436169121,7.6382,2485.7,2485.6,4.02317347]
[1750436169665,17.6382,2485.7,2485.5,4.02330957]
[1750436169834,17.6382,2485.7,2485.6,4.02317347]
[1750436170533,10.8232,2485.7,2485.5,4.02325281]
[1750436170938,6.811,2485.6,2485.5,4.02325281]
[1750436171138,10.0,2485.7,2485.6,4.02317347]
[1750436171447,10.0,2485.7,2485.5,4.02324661]
[1750436171448,16.871,2485.7,2485.5,4.02324661]
[1750436171867,16.81,2485.7,2485.3,0.1271198]
[1750436172049,10.0,2485.7,2485.3,0.1271198]
[1750436172254,29.4023527,2485.4,2485.3,0.1271198]
[1750436172423,36.2133527,2485.4,2485.3,0.1271198]
[1750436172618,10.8702,2485.4,2485.3,0.1271198]
[1750436172827,19.5262,2485.4,2485.3,0.1271198]
[1750436173167,17.6812,2485.4,2485.3,0.1271198]
[1750436173875,16.874,2485.4,2485.3,4.15077891]
[1750436174049,10.0,2485.4,2485.3,4.15077891]
[1750436174250,16.813,2485.4,2485.3,0.1271198]
[1750436174461,16.874,2485.4,2485.3,0.1271198]
[1750436174973,16.812,2485.4,2485.3,0.1271198]
[1750436175178,16.873,2485.4,2485.3,0.1271198]
[1750436175541,16.873,2485.4,2485.3,4.15077891]
[1750436176383,16.873,2485.4,2485.3,0.1271198]
[1750436176593,30.83165548,2485.4,2485.3,0.1271198]
[1750436177179,30.83165548,2485.4,2485.3,4.15077891]
[1750436177180,16.807,2485.4,2485.3,4.15077891]
[1750436177379,16.808,2485.4,2485.3,4.15077891]
[1750436179370,16.803,2485.4,2485.3,4.15077891]
[1750436180101,16.864,2485.4,2485.3,4.15077891]
[1750436180324,16.864,2485.4,2485.3,0.1271198]
[1750436180711,30.82265548,2485.4,2485.3,0.1271198]
[1750436181003,16.864,2485.4,2485.3,4.15077891]
[1750436181156,10.0,2485.4,2485.3,4.15077891]
[1750436181360,16.801,2485.4,2485.3,4.15077891]
[1750436181758,34.8441527,2485.4,2485.3,0.1271198]
[1750436181999,46.4321527,2485.4,2485.3,0.1271198]
[1750436182209,76.4321527,2485.4,2485.3,0.1271198]
[1750436182710,72.40865548,2485.4,2485.1,0.005]
[1750436182887,14.63482102,2485.2,2485.1,0.005]
[1750436183067,44.84058293,2485.1,2485.0,4.0]
[1750436183398,64.19796847,2485.1,2485.0,3.79005058]
[1750436183768,46.98830681,2484.9,2484.8,0.005]
[1750436183959,54.62690681,2484.9,2484.8,0.005]
[1750436184159,10.55,2484.8,2483.8,0.005]
[1750436184389,10.0,2484.6,2483.8,0.005]
[1750436184707,10.0,2484.5,2484.4,4.02511672]
[1750436184906,16.82,2484.5,2484.4,4.02511672]
[1750436185118,16.82,2484.5,2483.9,0.7881]
[1750436185119,10.0,2484.4,2483.9,0.7881]
[1750436185256,30.0,2483.8,2482.8,0.2171198]
[1750436185452,10.0,2483.9,2482.9,4.02748049]
[1750436185453,0.061,2483.0,2482.9,4.02748049]
[1750436185658,0.061,2483.4,2483.3,4.02689968]
[1750436185904,16.959,2483.4,2483.3,4.02689968]
[1750436186070,16.959,2483.4,2482.8,0.1671198]
[1750436186071,10.7556,2483.3,2482.8,0.1671198]
[1750436186266,1.3056,2483.1,2483.0,4.02738622]
[1750436186521,4.226,2483.6,2483.0,4.02738622]
[1750436186522,0.061,2483.6,2483.0,4.02738622]
[1750436186659,3.45055541,2484.4,2482.8,0.1171198]
[1750436186660,0.7556,2484.2,2482.8,0.0671198]
[1750436186993,13.95865548,2483.7,2483.6,4.02641327]
[1750436187158,7.679,2483.7,2483.6,4.02641327]
[1750436187359,0.7556,2484.2,2483.6,4.83171055]
[1750436187710,7.167,2484.2,2484.1,4.02560283]
[1750436187976,8.66555541,2484.4,2484.3,4.02527875]
[1750436188178,1.49855541,2484.4,2483.7,0.7861]
[1750436188376,1.49855541,2484.4,2484.0,4.02564041]
[1750436188666,30.0,2484.3,2483.7,0.7861]
[1750436188869,30.0,2484.3,2483.8,4.02608905]
[1750436189068,0.061,2484.2,2483.7,0.7861]
[1750436189378,10.0,2484.0,2483.5,4.02646768]
[1750436189518,0.061,2484.1,2483.7,4.02610483]
[1750436189714,7.229,2484.0,2483.6,4.02633918]
[1750436190017,7.229,2484.0,2483.5,4.0265573]
[1750436190018,10.0,2483.6,2482.8,0.8324198]
[1750436190238,7.229,2483.5,2482.8,0.8324198]
[1750436190415,7.229,2483.5,2483.2,4.02704643]
[1750436190616,30.061,2484.0,2482.9,2.036]
[1750436190818,30.0,2483.8,2483.3,4.0267758]
[1750436191047,0.8093,2484.5,2484.3,4.02527875]
[1750436191250,0.061,2484.6,2483.5,0.8119]
[1750436191251,7.226,2484.3,2483.5,0.8119]
[1750436191466,10.0,2484.2,2484.0,4.02575047]
[1750436191689,10.0,2484.2,2484.1,4.02560283]
[1750436191976,10.0,2484.2,2483.6,0.4838511]
[1750436191977,14.94467037,2484.5,2483.7,4.02615051]
[1750436192271,10.061,2484.2,2483.7,4.0261679]
[1750436192472,10.0,2484.2,2483.7,4.0261679]
[1750436192682,7.295,2484.1,2483.6,4.02637458]
[1750436193144,0.061,2484.2,2483.2,0.815]
[1750436193344,10.0,2483.8,2483.4,4.02672361]
[1750436193580,10.0,2483.6,2483.4,4.02663162]
[1750436193785,10.0,2483.6,2483.4,4.02672778]
[1750436194268,10.0,2483.6,2483.5,4.02657539]
[1750436194468,10.0,2483.6,2483.3,4.02689968]
[1750436194646,10.0,2483.6,2483.4,4.02671113]
[1750436194846,10.0,2483.6,2483.2,4.8420172]
[1750436195041,10.0,2483.6,2483.3,4.02688953]
[1750436195245,10.0,2483.6,2483.4,4.0267217]
[1750436195571,10.0,2483.6,2483.2,0.815]
[1750436195755,0.061,2483.5,2483.0,4.02730748]
[1750436195956,10.0,2483.3,2482.9,4.02754843]
[1750436196130,10.0,2483.3,2482.8,0.8526198]
[1750436196131,10.0,2483.3,2482.8,0.0671198]
[1750436196332,0.8384,2483.7,2482.8,0.1138198]
[1750436196533,10.0,2483.9,2483.4,4.02672146]
[1750436196733,10.0,2483.6,2483.3,4.02675085]
[1750436196932,10.0,2483.4,2483.3,4.02681805]
[1750436197236,7.226,2483.5,2483.2,4.02700342]
[1750436197436,7.226,2483.5,2483.3,4.02687324]
[1750436197656,7.226,2483.5,2483.2,4.0269338]
[1750436197969,7.226,2483.5,2483.4,4.02673753]
[1750436198331,7.226,2483.5,2483.3,4.02678009]
[1750436198670,10.0,2483.4,2482.9,0.8222]
[1750436198830,0.37413471,2483.3,2482.9,4.84965524]
[1750436199031,7.217,2483.2,2482.9,0.8222]
[1750436199272,0.8321,2482.5,2482.4,0.0008]
[1750436199453,8.85899729,2482.5,2482.4,4.02915965]
[1750436199655,0.8321,2483.3,2482.8,4.0275916]
[1750436199852,0.37387228,2483.2,2482.9,4.02740791]
[1750436200158,7.406,2483.3,2482.6,0.7941]
[1750436200374,7.406,2483.3,2482.7,4.02787288]
[1750436200535,7.406,2483.3,2482.8,0.48219729]
[1750436200734,7.406,2483.3,2483.1,4.02713806]
[1750436200972,7.406,2483.3,2483.2,4.02706185]
[1750436201358,1.29687654,2483.6,2482.9,0.7773]
[1750436201359,0.40647654,2483.6,2482.9,0.7773]
[1750436201677,10.0,2483.4,2483.1,4.02714205]
[1750436201844,10.0,2483.4,2483.0,4.02729051]
[1750436202045,10.0,2483.4,2483.0,4.02738598]
[1750436202254,10.0,2483.4,2483.0,4.02738622]
[1750436202450,11.3092,2484.1,2482.9,0.824]
[1750436202773,10.0,2483.9,2483.4,4.02661058]
[1750436203077,10.0,2483.9,2483.5,4.02650898]
[1750436203078,40.0,2483.9,2483.5,4.02650898]
[1750436203236,7.4633,2484.0,2483.1,4.02716005]
[1750436203438,0.0583,2484.0,2483.7,4.02623145]
[1750436203767,7.4,2483.9,2483.8,4.02608905]
[1750436204162,7.4,2483.9,2483.3,0.406728]
[1750436204163,10.91963593,2484.1,2482.8,0.8406]
[1750436204378,17.8311199,2484.0,2483.0,4.02738622]
[1750436204554,0.3738199,2483.9,2483.5,4.02652347]
[1750436204749,0.4321199,2483.9,2483.4,4.02668213]
[1750436204966,4.0842462,2483.9,2483.3,4.02688933]
[1750436205163,0.0583,2483.9,2482.8,0.8406]
[1750436205378,10.43227341,2483.9,2483.4,4.02664656]
[1750436205689,7.401,2483.8,2483.3,4.02675494]
[1750436205852,7.4593,2483.8,2483.3,4.02675494]
[1750436206042,0.0583,2483.7,2483.3,4.02675494]
[1750436206444,0.0583,2483.7,2482.8,4.86825348]
[1750436206662,0.0583,2483.7,2483.3,4.02678523]
[1750436207000,10.0,2483.9,2482.8,0.8406]
[1750436207288,4.02642101,2483.6,2483.0,4.0272464]
[1750436207497,12.41993051,2483.8,2483.2,4.02702677]
[1750436207649,12.41993051,2483.8,2482.8,0.8406]
[1750436207650,4.027059,2483.3,2482.8,0.7939]
[1750436207853,7.4493,2483.2,2482.8,4.02768902]
[1750436208092,11.47641063,2483.2,2482.5,0.8274]
[1750436208356,4.0274184,2483.0,2482.4,0.0008]
[1750436208576,10.8455,2483.1,2482.5,4.02815867]
[1750436208789,0.0583,2482.9,2482.5,4.02815867]
[1750436209101,7.388,2482.8,2482.4,4.02913999]
[1750436209307,7.388,2482.8,2482.5,4.02812007]
[1750436209486,7.388,2482.8,2482.6,4.02802083]
[1750436209657,10.43299144,2482.7,2482.4,0.0008]
[1750436209857,0.0583,2482.5,2482.4,0.0008]
[1750436210304,24.79625757,2482.5,2482.4,0.0008]
[1750436210599,65.71617923,2482.5,2482.4,0.0008]
[1750436210803,65.71617273,2482.5,2482.4,0.0008]
[1750436210954,67.37885825,2482.5,2482.4,0.0008]
[1750436211362,52.43102494,2482.5,2482.4,0.0008]
[1750436211554,52.80054999,2482.5,2482.4,0.0008]
[1750436211754,44.08682193,2482.3,2482.2,0.23605903]
[1750436211992,56.12592728,2482.3,2482.2,0.23605903]
[1750436212198,0.8654,2482.2,2481.7,0.005]
[1750436212493,0.43313942,2482.1,2481.8,4.02933354]
[1750436212695,40.0,2481.9,2481.0,0.955]
[1750436212940,0.0583,2481.7,2481.0,0.955]
[1750436213107,0.8071,2482.2,2481.2,4.07700791]
[1750436213412,7.468,2482.3,2482.2,4.02868423]
[1750436213757,7.465,2482.3,2482.2,4.02868423]
[1750436214412,0.8654,2482.9,2482.6,4.02794482]
[1750436214622,10.0,2482.7,2482.6,4.02794482]
[1750436214776,10.37477995,2482.7,2482.5,4.02817651]
[1750436214979,7.83277995,2482.6,2482.5,4.02817651]
[1750436215183,0.0583,2483.1,2483.0,4.02738622]
[1750436215423,0.39381028,2482.8,2482.7,4.02787288]
[1750436215630,0.7917,2483.6,2483.1,4.02722403]
[1750436215631,7.454,2483.2,2483.1,4.02722403]
[1750436215781,0.7917,2483.6,2483.0,4.02736228]
[1750436215981,7.82967802,2483.5,2483.4,4.02673753]
[1750436216185,7.455,2483.5,2483.4,4.02673753]
[1750436216413,8.23827787,2483.5,2483.4,4.02673753]
[1750436216597,7.457,2483.5,2483.1,4.02708473]
[1750436216800,32.242,2484.0,2483.4,4.02673753]
[1750436216983,0.0583,2483.8,2483.4,4.0266397]
[1750436217177,0.0583,2483.7,2483.4,4.0266397]
[1750436217526,0.0583,2483.5,2483.1,4.02716984]
[1750436217681,7.461,2483.4,2483.1,4.02720785]
[1750436218021,7.458,2483.3,2482.7,4.02787288]
[1750436218216,7.455,2483.2,2482.7,0.48226729]
[1750436218378,7.455,2483.2,2482.3,4.07520783]
[1750436218717,7.455,2483.2,2482.4,4.02835965]
[1750436218920,7.455,2483.2,2482.5,4.02819738]
[1750436219250,7.455,2483.2,2482.6,4.02795846]
[1750436219251,21.29455347,2483.1,2482.6,4.02795846]
[1750436219419,0.43321754,2483.0,2482.2,4.81586662]
[1750436219596,0.0583,2483.0,2482.2,5.30212328]
[1750436219954,10.91963593,2482.7,2481.8,4.79853053]
[1750436220111,10.0,2482.7,2482.6,4.02803512]
[1750436220602,17.446,2482.7,2482.6,4.02803512]
[1750436221005,7.446,2482.7,2482.6,4.02803512]
[1750436221826,7.438,2482.7,2482.6,4.02803512]
[1750436222023,10.0,2482.9,2482.8,4.02755031]
[1750436222257,7.84,2483.2,2483.0,4.02738622]
[1750436222456,0.39510651,2483.5,2483.1,4.02722403]
[1750436222457,7.432,2483.3,2483.1,4.02722403]
[1750436222758,30.0,2483.8,2483.5,4.02657539]
[1750436223054,3.0175,2483.9,2483.5,4.02651158]
[1750436223055,10.0,2483.6,2483.5,4.02651158]
[1750436223216,10.0,2483.4,2482.4,2.2887]
[1750436223418,0.0583,2483.5,2483.3,4.02689968]
[1750436223652,10.39833459,2483.5,2483.3,4.02689968]
[1750436223866,10.0,2483.6,2482.8,4.02756999]
[1750436223867,7.428,2483.4,2482.8,4.02756999]
[1750436224019,7.428,2483.4,2483.3,4.02689968]
[1750436224357,10.0,2483.6,2483.4,4.02662494]
[1750436224561,10.0,2483.3,2482.6,0.8077]
[1750436224717,17.423,2483.2,2483.1,4.02711606]
[1750436226052,2.3003,2483.8,2483.7,4.02625115]
[1750436226253,20.40312378,2483.8,2483.5,4.02657539]
[1750436226552,10.4332921,2483.7,2483.3,4.02682475]
[1750436226716,0.3749921,2483.6,2483.3,4.02687652]
[1750436226916,0.3749921,2483.6,2482.8,4.02766449]
[1750436226917,10.0,2483.4,2482.8,4.02766449]
[1750436227116,10.0,2483.4,2483.2,4.02690845]
[1750436227341,0.0583,2483.2,2482.4,4.02835732]
[1750436227550,10.0,2483.0,2482.9,4.02745255]
[1750436227734,0.8187,2483.2,2483.1,4.02722403]
[1750436227735,0.7604,2483.2,2483.1,4.02722403]
[1750436228028,10.0,2483.1,2482.6,4.02802314]
[1750436228252,10.0,2483.1,2483.0,4.02738622]
[1750436228917,0.40131716,2483.5,2483.4,4.02673753]
[1750436229154,7.399,2483.5,2483.4,4.02673753]
[1750436229664,7.398,2483.5,2483.1,0.0467]
[1750436229846,32.242,2484.1,2483.9,4.02584572]
[1750436230048,17.77506117,2484.0,2483.9,4.02584572]
[1750436230221,7.83176117,2484.0,2483.9,4.02584572]
[1750436230527,17.398,2484.0,2483.8,4.0260119]
[1750436230727,0.43175585,2483.9,2482.9,4.02749668]
[1750436230943,0.43175585,2483.9,2483.7,4.02624015]
[1750436230944,0.0567,2483.8,2483.7,4.02624015]
[1750436231334,0.37505585,2483.9,2483.8,4.02608905]
[1750436231538,8.17134567,2483.9,2483.8,4.02608905]
[1750436231791,0.37505585,2483.9,2483.8,4.02608905]
[1750436231923,17.393,2483.9,2483.8,4.02608905]
[1750436232272,17.76505585,2483.9,2483.8,4.02608905]
[1750436232770,0.37497616,2483.9,2483.8,4.02608905]
[1750436233001,0.0567,2484.9,2483.9,0.0467]
[1750436233263,7.385,2484.8,2484.2,0.7763]
[1750436233472,0.77436844,2484.9,2484.8,4.02446877]
[1750436233650,7.75979115,2484.9,2484.8,4.02446877]
[1750436234031,17.75979115,2484.9,2484.8,4.02446877]
[1750436234339,7.75979115,2484.9,2484.8,4.02446877]
[1750436234558,7.385,2484.9,2484.8,4.02446877]
[1750436234725,7.385,2484.9,2484.2,0.7763]
[1750436234927,7.4417,2484.9,2484.7,4.02454006]
[1750436235125,10.91963593,2484.8,2484.1,4.02560283]
[1750436235324,30.0,2484.7,2484.4,4.02497087]
[1750436235564,7.377,2484.6,2484.5,4.02487933]
[1750436236036,13.41070614,2484.9,2484.8,4.02446877]
[1750436236244,20.78670614,2484.9,2484.6,4.0247259]
[1750436236441,20.84340614,2484.9,2484.7,4.02459289]
[1750436236639,40.0,2484.8,2484.0,0.7876]
[1750436236828,10.0,2484.6,2484.4,4.02503663]
[1750436237038,17.371,2484.5,2484.4,4.02503663]